[Event "Titled Tuesday Blitz April 12 Early 2022"]
[White "Yurovskykh, Oleksandr"]
[Black "Gabdrakhmanov, Azat"]
[WhiteFideId "14134020"]
[BlackFideId "34189197"]
[WhiteElo "2292"]
[BlackElo "2279"]
[Result "1/2-1/2"]
[Round "11"]
[TimeControl "180+1"]
[Date "2022.04.13"]
[WhiteClock "0:00:03"]
[BlackClock "0:00:02"]

1. d4 {[%clk 0:02:56]}  Nf6 {[%clk 0:02:57]} 2. Nf3 {[%clk 0:02:56]}  g6 {[%clk 0:02:57]} 3. Bg5 {[%clk 0:02:56]}  Bg7 {[%clk 0:02:57]} 4. Nbd2 {[%clk 0:02:57]}  d5 {[%clk 0:02:57]} 5. e3 {[%clk 0:02:57]}  O-O {[%clk 0:02:56]} 6. Be2 {[%clk 0:02:57]}  c5 {[%clk 0:02:56]} 7. c3 {[%clk 0:02:57]}  Nc6 {[%clk 0:02:56]} 8. O-O {[%clk 0:02:57]}  Bf5 {[%clk 0:02:54]} 9. dxc5 {[%clk 0:02:52]}  e5 {[%clk 0:02:50]} 10. b4 {[%clk 0:02:47]}  h6 {[%clk 0:02:48]} 11. Bh4 {[%clk 0:02:47]}  g5 {[%clk 0:02:48]} 12. Bg3 {[%clk 0:02:47]}  Nh5 {[%clk 0:02:41]} 13. Qb3 {[%clk 0:02:46]}  Nxg3 {[%clk 0:02:29]} 14. hxg3 {[%clk 0:02:45]}  Be6 {[%clk 0:02:29]} 15. Qc2 {[%clk 0:02:40]}  Qd7 {[%clk 0:02:28]} 16. Rfd1 {[%clk 0:02:39]}  Rad8 {[%clk 0:02:26]} 17. e4 {[%clk 0:02:29]}  d4 {[%clk 0:02:21]} 18. cxd4 {[%clk 0:02:28]}  exd4 {[%clk 0:02:20]} 19. Bd3 {[%clk 0:02:12]}  Nxb4 {[%clk 0:02:18]} 20. Qb1 {[%clk 0:02:10]}  Qa4 {[%clk 0:02:07]} 21. a3 {[%clk 0:01:54]}  Nxd3 {[%clk 0:01:50]} 22. Qxd3 {[%clk 0:01:55]}  b5 {[%clk 0:01:34]} 23. cxb6 {[%clk 0:01:49]}  axb6 {[%clk 0:01:35]} 24. Rdb1 {[%clk 0:01:47]}  Rb8 {[%clk 0:01:27]} 25. Rb4 {[%clk 0:01:37]}  Qd7 {[%clk 0:01:26]} 26. Rab1 {[%clk 0:01:35]}  Qd6 {[%clk 0:01:10]} 27. e5 {[%clk 0:01:27]}  Bxe5 {[%clk 0:00:42]} 28. Ne4 {[%clk 0:01:22]}  Bf5 {[%clk 0:00:39]} 29. Nxd6 {[%clk 0:01:19]}  Bxd3 {[%clk 0:00:37]} 30. Nxe5 {[%clk 0:01:19]}  Bxb1 {[%clk 0:00:35]} 31. Rxb1 {[%clk 0:01:20]}  Rfd8 {[%clk 0:00:21]} 32. Nexf7 {[%clk 0:01:19]}  Rd7 {[%clk 0:00:20]} 33. Kf1 {[%clk 0:01:19]}  Rxf7 {[%clk 0:00:20]} 34. Nxf7 {[%clk 0:01:19]}  Kxf7 {[%clk 0:00:21]} 35. Ke2 {[%clk 0:01:19]}  Ke6 {[%clk 0:00:21]} 36. Kd3 {[%clk 0:01:19]}  Kd5 {[%clk 0:00:21]} 37. Rb5+ {[%clk 0:01:19]}  Kc6 {[%clk 0:00:22]} 38. a4 {[%clk 0:01:19]}  Ra8 {[%clk 0:00:21]} 39. Rb4 {[%clk 0:01:19]}  Rf8 {[%clk 0:00:20]} 40. f3 {[%clk 0:01:19]}  Re8 {[%clk 0:00:20]} 41. Rxd4 {[%clk 0:01:17]}  Re1 {[%clk 0:00:18]} 42. Re4 {[%clk 0:01:14]}  Rg1 {[%clk 0:00:16]} 43. Re6+ {[%clk 0:01:12]}  Kc5 {[%clk 0:00:17]} 44. Rxh6 {[%clk 0:01:12]}  Rxg2 {[%clk 0:00:17]} 45. g4 {[%clk 0:01:13]}  Ra2 {[%clk 0:00:18]} 46. Rg6 {[%clk 0:01:11]}  Ra3+ {[%clk 0:00:16]} 47. Ke2 {[%clk 0:01:10]}  Rxa4 {[%clk 0:00:15]} 48. Rxg5+ {[%clk 0:01:10]}  Kd4 {[%clk 0:00:14]} 49. Rb5 {[%clk 0:01:08]}  Ra2+ {[%clk 0:00:13]} 50. Kd1 {[%clk 0:00:18]}  Ke3 {[%clk 0:00:14]} 51. Rf5 {[%clk 0:00:14]}  b5 {[%clk 0:00:09]} 52. g5 {[%clk 0:00:13]}  b4 {[%clk 0:00:08]} 53. Kc1 {[%clk 0:00:11]}  Rg2 {[%clk 0:00:08]} 54. f4 {[%clk 0:00:09]}  Kd3 {[%clk 0:00:08]} 55. Rf6 {[%clk 0:00:09]}  Kc3 {[%clk 0:00:05]} 56. Rc6+ {[%clk 0:00:09]}  Kb3 {[%clk 0:00:05]} 57. g6 {[%clk 0:00:09]}  Rg1+ {[%clk 0:00:01]} 58. Kd2 {[%clk 0:00:10]}  Rg2+ {[%clk 0:00:02]} 59. Kd3 {[%clk 0:00:09]}  Rg3+ {[%clk 0:00:02]} 60. Ke4 {[%clk 0:00:10]}  Ka2 {[%clk 0:00:02]} 61. f5 {[%clk 0:00:09]}  b3 {[%clk 0:00:02]} 62. Ra6+ {[%clk 0:00:10]}  Kb1 {[%clk 0:00:02]} 63. Rb6 {[%clk 0:00:10]}  b2 {[%clk 0:00:02]} 64. Ke5 {[%clk 0:00:10]}  Kc2 {[%clk 0:00:03]} 65. Rxb2+ {[%clk 0:00:03]}  Kxb2 {[%clk 0:00:04]} 66. Kf6 {[%clk 0:00:03]}  Kc3 {[%clk 0:00:04]} 67. Kf7 {[%clk 0:00:04]}  Kd4 {[%clk 0:00:04]} 68. f6 {[%clk 0:00:04]}  Ke5 {[%clk 0:00:04]} 69. g7 {[%clk 0:00:03]}  Kf5 {[%clk 0:00:01]} 70. Ke7 {[%clk 0:00:03]}  Ke5 {[%clk 0:00:02]} 71. Kf7 {[%clk 0:00:01]}  Kf5 {[%clk 0:00:02]} 72. g8=Q {[%clk 0:00:02]}  Rxg8 {[%clk 0:00:01]} 73. Kxg8 {[%clk 0:00:03]}  Kxf6 {[%clk 0:00:02]} 1/2-1/2


[Site "https://www.chess.com"]

[Event "Titled Tuesday Blitz April 12 Early 2022"]
[White "Zhigalko, Sergei"]
[Black "Harshavardhan G B"]
[WhiteFideId "13502956"]
[BlackFideId "25059009"]
[WhiteElo "2662"]
[BlackElo "1831"]
[Result "1-0"]
[Round "11"]
[TimeControl "180+1"]
[Date "2022.04.12"]
[WhiteClock "0:00:15"]
[BlackClock "0:00:51"]

1. e4 {[%clk 0:03:00]}  e5 {[%clk 0:02:59]} 2. Nf3 {[%clk 0:02:59]}  Nc6 {[%clk 0:02:59]} 3. Bc4 {[%clk 0:02:58]}  Nf6 {[%clk 0:02:58]} 4. d3 {[%clk 0:02:58]}  Be7 {[%clk 0:02:58]} 5. O-O {[%clk 0:02:57]}  O-O {[%clk 0:02:58]} 6. Nbd2 {[%clk 0:02:57]}  d6 {[%clk 0:02:59]} 7. c3 {[%clk 0:02:57]}  h6 {[%clk 0:02:54]} 8. Re1 {[%clk 0:02:57]}  Kh8 {[%clk 0:02:52]} 9. h3 {[%clk 0:02:41]}  Nh7 {[%clk 0:02:52]} 10. d4 {[%clk 0:02:41]}  Ng5 {[%clk 0:02:48]} 11. Bd5 {[%clk 0:02:30]}  Bf6 {[%clk 0:02:42]} 12. Bxc6 {[%clk 0:02:18]}  bxc6 {[%clk 0:02:43]} 13. dxe5 {[%clk 0:02:18]}  dxe5 {[%clk 0:02:44]} 14. Nxg5 {[%clk 0:02:14]}  Bxg5 {[%clk 0:02:45]} 15. Nb3 {[%clk 0:01:59]}  Qf6 {[%clk 0:02:39]} 16. Bxg5 {[%clk 0:01:58]}  Qxg5 {[%clk 0:02:40]} 17. Qd2 {[%clk 0:01:52]}  Qg6 {[%clk 0:02:39]} 18. Re3 {[%clk 0:01:52]}  Be6 {[%clk 0:02:37]} 19. Nc5 {[%clk 0:01:50]}  Rad8 {[%clk 0:02:37]} 20. Qe2 {[%clk 0:01:50]}  Bc8 {[%clk 0:02:37]} 21. Rd1 {[%clk 0:01:43]}  Rd6 {[%clk 0:02:36]} 22. Kh2 {[%clk 0:01:33]}  Rfd8 {[%clk 0:02:35]} 23. Red3 {[%clk 0:01:25]}  Qf6 {[%clk 0:02:34]} 24. Qe3 {[%clk 0:01:19]}  Kh7 {[%clk 0:02:29]} 25. b4 {[%clk 0:01:17]}  a6 {[%clk 0:02:26]} 26. a4 {[%clk 0:01:17]}  Qe7 {[%clk 0:02:23]} 27. a5 {[%clk 0:01:14]}  g6 {[%clk 0:02:21]} 28. Kg1 {[%clk 0:01:03]}  Kg7 {[%clk 0:02:20]} 29. Qe2 {[%clk 0:00:42]}  Qg5 {[%clk 0:02:07]} 30. Kh1 {[%clk 0:00:26]}  Qe7 {[%clk 0:02:02]} 31. Qe3 {[%clk 0:00:23]}  h5 {[%clk 0:02:01]} 32. R1d2 {[%clk 0:00:22]}  h4 {[%clk 0:02:00]} 33. Kh2 {[%clk 0:00:21]}  f5 {[%clk 0:01:50]} 34. f3 {[%clk 0:00:18]}  f4 {[%clk 0:01:49]} 35. Qe2 {[%clk 0:00:14]}  Qg5 {[%clk 0:01:48]} 36. Kh1 {[%clk 0:00:13]}  Qg3 {[%clk 0:01:46]} 37. Qf1 {[%clk 0:00:14]}  Qg5 {[%clk 0:01:39]} 38. Qf2 {[%clk 0:00:09]}  Kf7 {[%clk 0:01:37]} 39. Qf1 {[%clk 0:00:09]}  Ke8 {[%clk 0:01:34]} 40. Na4 {[%clk 0:00:07]}  Qg3 {[%clk 0:01:27]} 41. Nc5 {[%clk 0:00:05]}  Ke7 {[%clk 0:01:24]} 42. Rd1 {[%clk 0:00:03]}  Ke8 {[%clk 0:01:17]} 43. R1d2 {[%clk 0:00:03]}  Qg5 {[%clk 0:01:17]} 44. Rd1 {[%clk 0:00:04]}  Qe7 {[%clk 0:01:09]} 45. R1d2 {[%clk 0:00:03]}  Qf6 {[%clk 0:01:08]} 46. Rd1 {[%clk 0:00:03]}  Qf7 {[%clk 0:01:07]} 47. Qf2 {[%clk 0:00:01]}  g5 {[%clk 0:01:05]} 48. Rxd6 {[%clk 0:00:01]}  cxd6 {[%clk 0:01:05]} 49. Na4 {[%clk 0:00:01]}  Qb7 {[%clk 0:01:04]} 50. Nb6 {[%clk 0:00:02]}  Be6 {[%clk 0:01:04]} 51. Qe2 {[%clk 0:00:02]}  Ke7 {[%clk 0:00:59]} 52. c4 {[%clk 0:00:02]}  Qc7 {[%clk 0:00:57]} 53. Qb2 {[%clk 0:00:03]}  Rb8 {[%clk 0:00:55]} 54. Kh2 {[%clk 0:00:03]}  Rd8 {[%clk 0:00:53]} 55. Qc3 {[%clk 0:00:03]}  Qb8 {[%clk 0:00:49]} 56. Rd2 {[%clk 0:00:03]}  Kf7 {[%clk 0:00:48]} 57. Rd1 {[%clk 0:00:03]}  Ke7 {[%clk 0:00:48]} 58. c5 {[%clk 0:00:03]}  d5 {[%clk 0:00:48]} 59. exd5 {[%clk 0:00:04]}  cxd5 {[%clk 0:00:49]} 60. c6 {[%clk 0:00:05]}  Qc7 {[%clk 0:00:45]} 61. Qc5+ {[%clk 0:00:05]}  Kf7 {[%clk 0:00:37]} 62. Nxd5 {[%clk 0:00:04]}  Bxd5 {[%clk 0:00:37]} 63. Rxd5 {[%clk 0:00:04]}  Rxd5 {[%clk 0:00:38]} 64. Qxd5+ {[%clk 0:00:04]}  Ke7 {[%clk 0:00:39]} 65. b5 {[%clk 0:00:03]}  axb5 {[%clk 0:00:37]} 66. a6 {[%clk 0:00:04]}  b4 {[%clk 0:00:36]} 67. Qd7+ {[%clk 0:00:04]}  Qxd7 {[%clk 0:00:36]} 68. cxd7 {[%clk 0:00:05]}  b3 {[%clk 0:00:37]} 69. a7 {[%clk 0:00:05]}  b2 {[%clk 0:00:38]} 70. d8=Q+ {[%clk 0:00:06]}  Kxd8 {[%clk 0:00:38]} 71. a8=Q+ {[%clk 0:00:06]}  Kd7 {[%clk 0:00:38]} 72. Qb7+ {[%clk 0:00:06]}  Kd6 {[%clk 0:00:39]} 73. Qxb2 {[%clk 0:00:07]}  Kd5 {[%clk 0:00:40]} 74. Qe2 {[%clk 0:00:07]}  Kd4 {[%clk 0:00:41]} 75. Qe4+ {[%clk 0:00:07]}  Kc3 {[%clk 0:00:41]} 76. Qxe5+ {[%clk 0:00:08]}  Kd2 {[%clk 0:00:42]} 77. Qxg5 {[%clk 0:00:08]}  Kd1 {[%clk 0:00:43]} 78. Qxf4 {[%clk 0:00:08]}  Ke2 {[%clk 0:00:43]} 79. Qxh4 {[%clk 0:00:09]}  Kf1 {[%clk 0:00:44]} 80. Qg3 {[%clk 0:00:08]}  Ke2 {[%clk 0:00:44]} 81. f4 {[%clk 0:00:09]}  Kf1 {[%clk 0:00:45]} 82. Qf3+ {[%clk 0:00:09]}  Ke1 {[%clk 0:00:45]} 83. f5 {[%clk 0:00:10]}  Kd2 {[%clk 0:00:45]} 84. Qf2+ {[%clk 0:00:10]}  Kd3 {[%clk 0:00:45]} 85. f6 {[%clk 0:00:11]}  Kc3 {[%clk 0:00:46]} 86. f7 {[%clk 0:00:11]}  Kd3 {[%clk 0:00:47]} 87. f8=Q {[%clk 0:00:11]}  Ke4 {[%clk 0:00:48]} 88. Q8f3+ {[%clk 0:00:11]}  Ke5 {[%clk 0:00:48]} 89. Q2g3+ {[%clk 0:00:12]}  Kd4 {[%clk 0:00:48]} 90. Qff4+ {[%clk 0:00:12]}  Kd5 {[%clk 0:00:48]} 91. Qgg5+ {[%clk 0:00:13]}  Ke6 {[%clk 0:00:49]} 92. Qff6+ {[%clk 0:00:14]}  Kd7 {[%clk 0:00:50]} 93. Qgg7+ {[%clk 0:00:14]}  Ke8 {[%clk 0:00:51]} 94. Qff8# {[%clk 0:00:15]} 1-0


[Site "https://www.chess.com"]

[Event "Titled Tuesday Blitz April 12 Early 2022"]
[White "Zhu, Jiner"]
[Black "Jumabayev, Rinat"]
[WhiteFideId "8608059"]
[BlackFideId "13702661"]
[WhiteElo "2281"]
[BlackElo "2561"]
[Result "0-1"]
[Round "11"]
[TimeControl "180+1"]
[Date "2022.04.12"]
[WhiteClock "0:00:11"]
[BlackClock "0:00:08"]

1. e4 {[%clk 0:03:00]}  c5 {[%clk 0:02:57]} 2. Nf3 {[%clk 0:03:00]}  d6 {[%clk 0:02:58]} 3. d4 {[%clk 0:03:00]}  cxd4 {[%clk 0:02:59]} 4. Nxd4 {[%clk 0:03:01]}  Nf6 {[%clk 0:03:00]} 5. Nc3 {[%clk 0:03:02]}  Nc6 {[%clk 0:03:00]} 6. Bg5 {[%clk 0:03:01]}  e6 {[%clk 0:03:01]} 7. Qd2 {[%clk 0:03:01]}  a6 {[%clk 0:03:01]} 8. O-O-O {[%clk 0:03:00]}  Bd7 {[%clk 0:03:02]} 9. f3 {[%clk 0:02:59]}  Be7 {[%clk 0:02:54]} 10. Nxc6 {[%clk 0:02:58]}  Bxc6 {[%clk 0:02:54]} 11. h4 {[%clk 0:02:57]}  h6 {[%clk 0:02:51]} 12. Be3 {[%clk 0:02:56]}  d5 {[%clk 0:02:50]} 13. exd5 {[%clk 0:02:35]}  Nxd5 {[%clk 0:02:50]} 14. Nxd5 {[%clk 0:02:35]}  Bxd5 {[%clk 0:02:51]} 15. Kb1 {[%clk 0:02:30]}  Rc8 {[%clk 0:02:51]} 16. Qf2 {[%clk 0:01:56]}  Qa5 {[%clk 0:02:47]} 17. a3 {[%clk 0:01:43]}  Bxa3 {[%clk 0:02:30]} 18. c4 {[%clk 0:01:24]}  Bxc4 {[%clk 0:01:49]} 19. Bxc4 {[%clk 0:01:22]}  Rxc4 {[%clk 0:01:48]} 20. bxa3 {[%clk 0:01:01]}  Qxa3 {[%clk 0:01:46]} 21. Bc1 {[%clk 0:00:57]}  Rb4+ {[%clk 0:01:31]} 22. Bb2 {[%clk 0:00:56]}  O-O {[%clk 0:01:32]} 23. Rd4 {[%clk 0:00:39]}  Rb5 {[%clk 0:00:50]} 24. Rhd1 {[%clk 0:00:37]}  a5 {[%clk 0:00:42]} 25. Qc2 {[%clk 0:00:32]}  Qe7 {[%clk 0:00:37]} 26. g3 {[%clk 0:00:21]}  h5 {[%clk 0:00:21]} 27. Ka1 {[%clk 0:00:21]}  Qf6 {[%clk 0:00:13]} 28. R4d3 {[%clk 0:00:15]}  Qf5 {[%clk 0:00:12]} 29. Rc3 {[%clk 0:00:14]}  Qxc2 {[%clk 0:00:07]} 30. Rxc2 {[%clk 0:00:15]}  Rf5 {[%clk 0:00:07]} 31. f4 {[%clk 0:00:14]}  Rb5 {[%clk 0:00:07]} 32. Rd7 {[%clk 0:00:14]}  b6 {[%clk 0:00:08]} 33. Rcc7 {[%clk 0:00:15]}  Rb3 {[%clk 0:00:08]} 34. Ka2 {[%clk 0:00:11]}  Rxg3 {[%clk 0:00:08]} 35. Ba3 {[%clk 0:00:12]}  Rg2+ {[%clk 0:00:08]} 36. Kb1 {[%clk 0:00:11]}  Rg1+ {[%clk 0:00:07]} 37. Ka2 {[%clk 0:00:11]}  Rg2+ {[%clk 0:00:07]} 38. Kb3 {[%clk 0:00:12]}  Rg3+ {[%clk 0:00:07]} 39. Ka4 {[%clk 0:00:12]}  b5+ {[%clk 0:00:07]} 40. Kxb5 {[%clk 0:00:11]}  Rxa3 {[%clk 0:00:08]} 41. Ra7 {[%clk 0:00:11]}  Rf3 {[%clk 0:00:08]} 42. Rxa5 {[%clk 0:00:11]}  Rxf4 {[%clk 0:00:08]} 43. Raa7 {[%clk 0:00:11]}  Rxh4 {[%clk 0:00:08]} 0-1


[Site "https://www.chess.com"]